lending/lending_fUSD_20240731
["ID","MTS","AMOUNT","RATE_DAILY","PERIOD"]
[333706713,1722388232275,-10617.8994,0.0001079,2]
[333706714,1722388232285,-499.99,0.0001079,2]
[333706715,1722388232294,-213.0071,0.000108,2]
[333706716,1722388232303,-150.0,0.00010859,2]
[333706717,1722388232313,-32573.1034,0.0001086,2]
[333706718,1722388232322,-6349.58,0.0001086,2]
[333706719,1722388232331,-272704.0,0.0001089,2]
[333706720,1722388232341,-3000.0,0.0001089,2]
[333706721,1722388232350,-1580.87463018,0.00010899,2]
[333706722,1722388232359,-1580.87463016,0.00010899,2]
[333706723,1722388232369,-1580.87463016,0.00010899,2]
[333706724,1722388232378,-1580.87463016,0.00010899,2]
[333706725,1722388232388,-1580.87463016,0.00010899,2]
[333706726,1722388232397,-1580.87463016,0.00010899,2]
[333706727,1722388232407,-1580.87463016,0.00010899,2]
[333706728,1722388232416,-1580.87463016,0.00010899,2]
[333706729,1722388232425,-1580.87463016,0.00010899,2]
[333706730,1722388232435,-9993.9208,0.000109,2]
[333706731,1722388232445,-10975.96044699,0.000109,2]
[333706733,1722388232456,-953.4260579,0.000109,2]
[333706742,1722388232541,-3582.14339511,0.000109,2]
[333706744,1722388232551,-530.39878773,0.000109,2]
[333706746,1722388232560,-502.09744113,0.000109,2]
[333706748,1722388232570,-502.09744114,0.000109,2]
[333706750,1722388232580,-1580.87463016,0.000109,2]
[333706752,1722388232589,-1000.0,0.000109,2]
[333706754,1722388232598,-272.19660628,0.000109,2]
[333706756,1722388232607,-3007.54333918,0.000109,2]
[333706758,1722388232617,-272.19660626,0.000109,2]
[333706760,1722388232626,-272.19660626,0.000109,2]
[333706762,1722388232635,-272.19660626,0.000109,2]
[333706764,1722388232644,-272.19660626,0.000109,2]
[333706766,1722388232654,-272.19660626,0.000109,2]
[333706768,1722388232663,-272.19660626,0.000109,2]
[333706769,1722388232672,-272.19660626,0.000109,2]
[333706770,1722388232681,-1255.0,0.0001096,2]
[333706771,1722388232690,-1581.0,0.0001096,2]
[333706772,1722388232700,-179.302,0.0001096,2]
[333706773,1722388232710,-1925.0,0.0001096,2]
[333706774,1722388232719,-385.051,0.0001096,2]
[333706775,1722388232730,-811.0,0.0001096,2]
[333706776,1722388232740,-2384.0,0.0001096,2]
[333706777,1722388232749,-450.0,0.0001096,2]
[333706778,1722388232758,-316.22,0.0001096,2]
[333706779,1722388232769,-310.752,0.0001096,2]
[333706780,1722388232779,-474.191,0.0001096,2]
[333706781,1722388232788,-3700.3857577,0.00010995,2]
[333706782,1722388232798,-22134.4063423,0.00010998,2]
[333706783,1722388232807,-1468.9623384,0.00010998,2]
[333706784,1722388232817,-3151.5553211,0.00010998,2]
[333706785,1722388232826,-212595.16222535,0.00011,2]
[333706786,1722388232839,-552.46305185,0.00011,2]
[333706787,1722388238807,-388.472,0.00010682,2]
[333706788,1722388238817,-866.01107782,0.00010997,2]
[333706789,1722388238828,-914.20248923,0.00010997,2]
[333706790,1722388238838,-7101.62903188,0.00011,2]
[333706791,1722388238991,-19099.21,0.00011,2]
[333706792,1722388239003,-5313.6990875,0.00011,2]
[333706793,1722388239014,-16071.45571123,0.00011,2]
[333706794,1722388239025,-27604.04831325,0.00011,2]
[333706796,1722388239036,-22243.24876,0.00011,2]
[333706798,1722388239047,-719.36076778,0.00011,2]
[333706799,1722388239058,-3682.48722413,0.00011,2]
[333706801,1722388239070,-2673.94097609,0.00011,2]
[333706803,1722388239079,-359.26420073,0.00011,2]
[333706805,1722388239089,-290.08119832,0.00011,2]
[333706902,1722388240267,-261.93093046,0.00011,2]
[333706914,1722388240446,-9463.64950159,0.00011,2]
[333706915,1722388240458,-1870.53815802,0.00011,2]
[333706916,1722388240514,-1820.01041548,0.00011,2]
[333706917,1722388240525,-263.40788101,0.00011,2]
[333706918,1722388240582,-13798.4264595,0.00011,2]
[333706919,1722388240703,-302.0,0.00011,2]
[333706920,1722388240768,-2325.87902,0.00011,2]
[333706921,1722388240783,-5453.94257448,0.00011,2]
[333706922,1722388240795,-1452.31880712,0.00011,2]
[333706938,1722388243178,-690142.43595181,0.00011,2]
[333706939,1722388243189,-961.07115,0.00011,2]
[333706940,1722388243204,-400.0,0.00011,2]
[333706941,1722388243240,-316.220239,0.00011,2]
[333706942,1722388243470,-2592.65898256,0.00011,2]
[333706949,1722388246225,-1134.13449414,0.00011,2]
[333706950,1722388248039,-850.03340466,0.00011,2]
[333706952,1722388248291,-673.98,0.00011,2]
[333706954,1722388248303,-337753.93687483,0.00011,2]
[333706956,1722388248315,-1663.15,0.00011,2]
[333706968,1722388379058,270.43,8.456e-05,2]
[333706969,1722388878247,256.9,8.219e-05,2]
[333706989,1722389374913,244.05,8.219e-05,2]
[333707021,1722389432650,-176.55,9.941e-05,2]
[333707022,1722389432660,-500.0,0.0001,2]
[333707023,1722389432670,-500.0,0.0001,2]
[333707024,1722389432680,-500.0,0.0001,2]
[333707025,1722389432691,-273.97,0.0001,2]
[333707026,1722389432702,-337.99,0.0001,2]
[333707027,1722389432711,-250.0,0.00010012,2]
[333707028,1722389432724,-1000.0,0.00010014,2]
[333707029,1722389432734,-355.4874963,0.00010045,2]
[333707030,1722389432745,-987.81924358,0.00010045,2]
[333707031,1722389432767,-473.65326012,0.00010045,2]
[333707032,1722389432777,-173.89,0.00010197,2]
[333707033,1722389432788,-931.47620938,0.0001025,2]
[333707034,1722389432837,-16.16083764,0.0001025,2]
[333707036,1722389432846,-293.35360617,0.0001025,2]
[333707037,1722389432855,-1857.3280224,0.0001025,2]
[333707038,1722389432865,-244.05,0.00010479,2]
[333707039,1722389432874,-5931.56517783,0.000105,2]
[333707040,1722389432886,-258.50777657,0.000105,2]
[333707047,1722389438579,-243.83071689,9.962e-05,2]
[333707048,1722389438590,-113.67032081,0.000105,2]
[333707158,1722389440837,-333.81892786,0.000105,2]
[333707159,1722389440848,-1950.58610927,0.000105,2]
[333707160,1722389440860,-3310.30765838,0.000105,2]
[333707161,1722389440872,-295.58402518,0.000105,2]
[333707162,1722389440883,-613.36841684,0.000105,2]
[333707163,1722389440892,-420.34,0.000105,2]
[333707164,1722389440900,-758.0,0.00010673,2]
[333707165,1722389440910,-150.0,0.00010799,2]
[333707166,1722389440919,-21776.10300346,0.000108,2]
[333707167,1722389440928,-856.29496714,0.000108,2]
[333707168,1722389440937,-3774.7923,0.00010898,2]
[333707169,1722389440947,-225.3766,0.000109,2]
[333707170,1722389440956,-547.4667,0.000109,2]
[333707171,1722389440966,-250.0,0.00010959,2]
[333707172,1722389440975,-1258.123,0.0001096,2]
[333707173,1722389440984,-1929.717,0.0001096,2]
[333707174,1722389440993,-1584.746,0.0001096,2]
[333707175,1722389441003,-641.9392714,0.0001096,2]
[333707176,1722389441056,-159.2057286,0.0001096,2]
[333707177,1722389441066,-105.2898714,0.0001097,2]
[333707178,1722389441077,-875.6832297,0.0001097,2]
[333707179,1722389441089,-391.35126896,0.0001097,2]
[333707180,1722389441099,-103.82879717,0.0001099,2]
[333707181,1722389441245,-272.10660003,0.0001099,2]
[333707183,1722389441256,-1467.29741007,0.0001099,2]
[333707186,1722389441269,-460.63094984,0.0001099,2]
[333707188,1722389441281,-1147.94373023,0.0001099,2]
[333707190,1722389441298,-896.82497611,0.0001099,2]
[333707193,1722389441309,-383.57266039,0.0001099,2]
[333707213,1722389443648,-1648.626,0.0001096,2]
[333707214,1722389443658,-813.89221402,0.0001099,2]
[333707215,1722389443667,-1108.66,0.00010997,2]
[333707216,1722389443679,-2014.8630157,0.00010998,2]
[333707217,1722389443689,-944.7602672,0.00010998,2]
[333707218,1722389443698,-43368.32649622,0.00011,2]
[333707219,1722389443737,-419.10287483,0.00011,2]
[333707220,1722389443748,-332.28537817,0.00011,2]
[333707221,1722389443759,-1490.79089986,0.00011,2]
[333707222,1722389443771,-772.82854254,0.00011,2]
[333707223,1722389443782,-341.04,0.00011,2]
[333707224,1722389443844,-366.21197581,0.00011,2]
[333707235,1722389446693,-319.018,0.0001096,2]
[333707236,1722389446702,-1164.922,0.00011,2]
[333707237,1722389446715,-1744.32203037,0.00011,2]
[333707238,1722389446727,-417.95823573,0.00011,2]
[333707239,1722389446739,-1712.25832484,0.00011,2]
[333707240,1722389446750,-434.012,0.00011,2]
[333707241,1722389448751,-243.83071689,9.962e-05,2]
[333707242,1722389448761,-35822.76122401,0.00011,2]
[333707243,1722389448770,-8254.37288413,0.00011,2]
[333707244,1722389448782,-290.05976315,0.00011,2]
[333707245,1722389449443,-8025.59606983,0.00011,2]
[333707246,1722389449455,-3142.68433238,0.00011,2]
[333707247,1722389449467,-20597.57059251,0.00011,2]
[333707248,1722389449480,-500.0,0.00011,2]
[333707249,1722389449492,-261.60174887,0.00011,2]
[333707250,1722389449504,-1459.03154576,0.00011,2]
[333707251,1722389449531,-306.41388337,0.00011,2]
[333707252,1722389449542,-283.49453764,0.00011,2]
[333707253,1722389449555,-344.65771857,0.00011,2]
[333707254,1722389449567,-333.5134452,0.00011,2]
[333707255,1722389462086,1371.66322666,8.219e-05,2]
[333707256,1722389676273,185.28,0.0001337,30]
[333707261,1722389954359,258.56,8.219e-05,2]
[333707262,1722390026572,105.66121585,8.219e-05,2]
[333707263,1722390026596,4416.76032863,8.219e-05,2]
[333707264,1722390061258,2493.0,3.7e-05,120]
[333707265,1722390122567,3014.94769632,3.7e-05,2]
[333707266,1722390129655,2568.29197505,5e-05,2]
[333707267,1722390129679,10000.0,5e-05,2]
[333707268,1722390129703,7113.4722961,5e-05,2]
[333707269,1722390152900,2886.5277039,3.7e-05,2]
[333707270,1722390152926,128.41999242,3.7e-05,2]
[333707271,1722390174178,169.84,0.0001337,30]
[333707272,1722390198079,1308.98979149,4.485e-05,2]
[333707273,1722390248083,1308.98979149,4.485e-05,2]
[333707274,1722390263515,7253.6004246,5.436e-05,2]
[333707275,1722390263538,10000.0,5.436e-05,2]
[333707276,1722390263564,2428.16384655,5.436e-05,2]
[333707277,1722390274148,300.25084317,5.436e-05,2]
[333707278,1722390296076,1308.98979149,5.436e-05,2]
[333707279,1722390348574,1308.98979149,5.436e-05,2]
[333707281,1722390446582,1308.98979149,5.436e-05,2]
[333707288,1722390536102,1308.98979149,5.436e-05,2]
[333707291,1722390543595,1308.98979149,5.436e-05,2]
[333707303,1722390631874,-1308.98979149,6.589e-05,2]
[333707304,1722390631884,-245.63,8.219e-05,2]
[333707305,1722390631893,-300.0,9.27e-05,2]
[333707306,1722390631903,-10000.0,9.271e-05,2]
[333707307,1722390631912,-250.0,9.271e-05,2]
[333707308,1722390631921,-214.6,9.279e-05,2]
[333707309,1722390631930,-836.16227522,9.322e-05,2]
[333707310,1722390631942,-1304.63772478,9.322e-05,2]
[333707311,1722390631951,-1000.0,9.667e-05,2]
[333707312,1722390631960,-173.89,9.703e-05,2]
[333707313,1722390631969,-150.0,9.863e-05,2]
[333707314,1722390631978,-157.84,9.88e-05,2]
[333707315,1722390631988,-157.84,9.883e-05,2]
[333707316,1722390631997,-299.99,9.883e-05,2]
[333707317,1722390632006,-157.84,9.885e-05,2]
[333707318,1722390632015,-247.59854537,9.885e-05,2]
[333707319,1722390632027,-252.39145463,9.885e-05,2]
[333707320,1722390632036,-427.31854537,9.885e-05,2]
[333707321,1722390632047,-866.78145463,9.885e-05,2]
[333707322,1722390632055,-152.06713996,9.888e-05,2]
[333707323,1722390632065,-157.84,9.888e-05,2]
[333707324,1722390632074,-157.84,9.891e-05,2]
[333707325,1722390632083,-157.84,9.893e-05,2]
[333707326,1722390632093,-157.84,9.896e-05,2]
[333707327,1722390632103,-645.82,9.896e-05,2]
[333707328,1722390632112,-157.84,9.898e-05,2]
[333707329,1722390632121,-157.84,9.901e-05,2]
[333707330,1722390632135,-157.84,9.904e-05,2]
[333707331,1722390632144,-157.84,9.906e-05,2]
[333707332,1722390632153,-157.84,9.909e-05,2]
[333707333,1722390632163,-157.84,9.911e-05,2]
[333707334,1722390632172,-157.84,9.914e-05,2]
[333707335,1722390632181,-157.84,9.917e-05,2]
[333707336,1722390632190,-150.0,9.917e-05,2]
[333707337,1722390632200,-157.84,9.919e-05,2]
[333707338,1722390632212,-157.84,9.922e-05,2]
[333707339,1722390632223,-157.84,9.924e-05,2]
[333707340,1722390632232,-157.84,9.927e-05,2]
[333707341,1722390632241,-157.84,9.93e-05,2]
[333707342,1722390632250,-760.70288139,0.0001,2]
[333707343,1722390632259,-411.02120036,0.0001,2]
[333707344,1722390632271,-838.97879964,0.0001,2]
[333707345,1722390632281,-420.0,0.00010197,2]
[333707346,1722390632292,-1673.19,0.00010241,2]
[333707347,1722390632303,-834.15,0.00010293,2]
[333707348,1722390632314,-423.38,0.00010293,2]
[333707349,1722390632325,-420.42,0.00010293,2]
[333707350,1722390632334,-420.42,0.00010293,2]
[333707351,1722390632346,-420.42,0.00010293,2]
[333707352,1722390632355,-420.42,0.00010293,2]
[333707353,1722390632365,-530.28,0.00010378,2]
[333707354,1722390632375,-425.8,0.00010378,2]
[333707355,1722390632384,-150.0,0.00010378,2]
[333707356,1722390632394,-150.0,0.00010378,2]
[333707357,1722390632403,-150.0,0.00010378,2]
[333707358,1722390632413,-150.86,0.00010378,2]
[333707359,1722390632422,-356.05,0.00010378,2]
[333707360,1722390632431,-425.8,0.00010378,2]
[333707361,1722390632440,-136.81405657,0.00010378,2]
[333707362,1722390632453,-13.18594343,0.00010378,2]
[333707363,1722390632463,-150.0,0.00010378,2]
[333707364,1722390632473,-318.80260135,0.00010378,2]
[333707366,1722390637689,-37.24739865,0.00010378,2]
[333707367,1722390637698,-530.28,0.00010378,2]
[333707369,1722390637710,-530.28,0.00010378,2]
[333707371,1722390637719,-425.8,0.00010378,2]
[333707373,1722390637728,-356.05,0.00010378,2]
[333707375,1722390637738,-150.0,0.00010378,2]
[333707377,1722390637747,-150.0,0.00010378,2]
[333707378,1722390637758,-150.0,0.00010378,2]
[333707379,1722390637767,-530.28,0.00010378,2]
[333707380,1722390637777,-150.0,0.00010378,2]
[333707381,1722390637786,-425.8,0.00010378,2]
[333707382,1722390637796,-356.05,0.00010378,2]
[333707383,1722390637805,-150.0,0.00010378,2]
[333707384,1722390637815,-425.8,0.00010378,2]
[333707385,1722390637824,-150.0,0.00010378,2]
[333707386,1722390637833,-351.4654454,0.00010378,2]
[333707387,1722390637895,-4.5845546,0.00010378,2]
[333707388,1722390637904,-549.42224595,0.00010416,2]
[333707389,1722390637915,-245.63,0.00010438,2]
[333707390,1722390637926,-3386.63902723,0.000105,2]
[333707391,1722390637937,-658.17930431,0.000105,2]
[333707392,1722390637949,-2943.25009226,0.000105,2]
[333707393,1722390637960,-396.30311506,0.000105,2]
[333707394,1722390638116,-397.17844232,0.000105,2]
[333707395,1722390638128,-404.64145571,0.000105,2]
[333707398,1722390638140,-688.35,0.000105,2]
[333707413,1722390639753,-947.67050708,6.589e-05,2]
[333707414,1722390639763,-3933.6129961,0.000105,2]
[333707415,1722390639772,-420.42,0.00010541,2]
[333707416,1722390639781,-775.63150248,0.000108,2]
[333707417,1722390639792,-327.58500001,0.000108,2]
[333707418,1722390639805,-1289.63499751,0.000108,2]
[333707419,1722390639816,-259.5867,0.000108,2]
[333707420,1722390639825,-373.20085711,0.000108,2]
[333707421,1722390639837,-126.79914289,0.000108,2]
[333707422,1722390639848,-171.77398245,0.000108,2]
[333707423,1722390639862,-643.97556585,0.000108,2]
[333707424,1722390639874,-4786.36046934,0.000108,2]
[333707425,1722390639925,-19397.88998236,0.000108,2]
[333707426,1722390639935,-1000.0,0.00010876,2]
[333707427,1722390639946,-1171.24064068,0.0001088,2]
[333707428,1722390639955,-998.1106,0.000109,2]
[333707429,1722390639965,-5254.5846,0.000109,2]
[333707430,1722390639974,-179.7307,0.000109,2]
[333707431,1722390639985,-34004.1315,0.000109,2]
[333707432,1722390639995,-254.84919617,0.000109,2]
[333707433,1722390640005,-459.5547,0.000109,2]
[333707434,1722390640014,-4073.3997,0.000109,2]
[333707435,1722390640024,-450.31974517,0.000109,2]
[333707436,1722390640034,-731.60094763,0.000109,2]
[333707437,1722390640044,-255.0,0.00010908,2]
[333707438,1722390640055,-175.726,0.0001096,2]
[333707439,1722390640064,-1349.633,0.0001096,2]
[333707440,1722390640074,-1581.0,0.0001096,2]
[333707441,1722390640083,-16599.667,0.0001096,2]
[333707442,1722390640093,-1207.213,0.0001096,2]
[333707443,1722390640102,-155.155,0.0001096,2]
[333707444,1722390640114,-150.0,0.0001096,2]
[333707445,1722390640124,-1000.76528965,0.0001097,2]
[333707446,1722390640137,-795.53745738,0.0001097,2]
[333707447,1722390640146,-3173.2374602,0.00010994,2]
[333707448,1722390640156,-66290.11498679,0.00011,2]
[333707449,1722390640165,-33149.3803086,0.00011,2]
[333707450,1722390640178,-546.4121415,0.00011,2]
[333707451,1722390640190,-1795.6361427,0.00011,2]
[333707452,1722390640201,-1028.443,0.00011,2]
[333707453,1722390640216,-2621.60252239,0.00011,2]
[333707454,1722390640227,-1765.5,0.00011,2]
[333707455,1722390640238,-1301.90749695,0.00011,2]
[333707456,1722390640249,-3343.97506869,0.00011,2]
[333707457,1722390640277,-11826.664274,0.00011,2]
[333707458,1722390640298,-2818.71462798,0.00011,2]
[333707461,1722390640310,-2435.38767799,0.00011,2]
[333707463,1722390640321,-5521.87,0.00011,2]
[333707464,1722390640332,-258.26659757,0.00011,2]
[333707670,1722390642757,-150.259,0.0001096,2]
[333707680,1722390642906,-1371.1604732,0.00011,2]
[333707681,1722390642919,-1167.36360029,0.00011,2]
[333707682,1722390642932,-5753.72585808,0.00011,2]
[333707683,1722390642945,-701.11,0.00011,2]
[333707690,1722390645844,-1504.3022589,0.00011,2]
[333707691,1722390645858,-319.31715993,0.00011,2]
[333707692,1722390645870,-895.73293621,0.00011,2]
[333707693,1722390646036,-2356.43045917,0.00011,2]
[333707694,1722390646048,-2544.01325688,0.00011,2]
[333707695,1722390647608,-150.0,0.0001096,2]
[333707696,1722390647621,-8964.78504136,0.00011,2]
[333707703,1722390648292,-2910.55810647,0.00011,2]
[333707705,1722390648304,-890.2,0.00011,2]
[333707707,1722390648316,-254.08592998,0.00011,2]
[333707708,1722390648328,-2314.99040873,0.00011,2]
[333707709,1722390648339,-664.56568888,0.00011,2]
[333707710,1722390661302,155.68,0.0001337,30]
[333707712,1722390696081,10000.0,0.000136,30]
[333707716,1722391161177,155.68,0.0001337,30]
[333707736,1722391812467,155.68,0.0001337,30]
[333707737,1722391829754,1424.0,0.00027,120]
[333707756,1722391831941,-254.90579566,8e-05,2]
[333707758,1722391831951,-258.34,8.219e-05,2]
[333707760,1722391831960,-250.0,9.864e-05,2]
[333707762,1722391831971,-596.19623754,9.926e-05,2]
[333707764,1722391832171,-818.82444517,9.926e-05,2]
[333707765,1722391832186,-757.13168339,9.926e-05,2]
[333707766,1722391832198,-1942.9676339,9.926e-05,2]
[333707767,1722391832207,-150.0,9.999e-05,2]
[333707768,1722391832217,-300.0,9.999e-05,2]
[333707769,1722391832226,-300.0,9.999e-05,2]
[333707770,1722391832236,-155.0,0.0001,2]
[333707771,1722391832246,-1250.0,0.0001,2]
[333707772,1722391832255,-292.24818496,0.0001,2]
[333707773,1722391832344,-658.56838588,0.0001,2]
[333707797,1722391837942,-596.8984105,0.0001,2]
[333707798,1722391838156,-3274.48434457,0.0001,2]
[333707799,1722391838168,-1089.31911342,0.0001,2]
[333707840,1722391842850,-14358.07907191,0.0001,2]
[333707858,1722391843034,-4940.96458841,0.0001,2]
[333707860,1722391843045,-665.25786,0.0001,2]
[333707862,1722391843057,-13300.79768454,0.0001,2]
[333707864,1722391843068,-3397.93999999,0.0001,2]
[333707865,1722391843240,-1018.03971842,0.0001,2]
[333707866,1722391843252,-19303.22012052,0.0001,2]
[333707914,1722391845970,-670.71479205,0.0001,2]
[333707936,1722391846193,-1504.4640098,0.0001,2]
[333707939,1722391846206,-749.068014,0.0001,2]
[333707941,1722391846219,-6925.67894862,0.0001,2]
[333707943,1722391846232,-3448.8,0.0001,2]
[333707945,1722391846243,-1082.04073439,0.0001,2]
[333707946,1722391846392,-15730.51647615,0.0001,2]
[333707949,1722391846405,-1972.63374859,0.0001,2]
[333707950,1722391846418,-2116.83592838,0.0001,2]
[333707953,1722391846429,-1212.87950928,0.0001,2]
[333708298,1722392334657,155.68,0.0001337,30]
[333708300,1722392699452,1000.0,0.00027,120]
[333708307,1722392921573,155.68,0.0001337,30]
[333708364,1722393032246,-281.62,8.219e-05,2]
[333708365,1722393032255,-200.0,9.081e-05,2]
[333708366,1722393032265,-23900.0,9.092e-05,2]
[333708367,1722393032275,-310.97,9.164e-05,2]
[333708368,1722393032284,-1852.42,9.175e-05,2]
[333708369,1722393032294,-200.0,9.184e-05,2]
[333708370,1722393032304,-4657.5,9.19e-05,2]
[333708371,1722393032313,-350.1,9.289e-05,2]
[333708372,1722393032323,-1108.66,9.29e-05,2]
[333708373,1722393032333,-171.32,9.693e-05,2]
[333708374,1722393032342,-420.42,9.7e-05,2]
[333708375,1722393032351,-419.78,9.7e-05,2]
[333708376,1722393032361,-840.68,9.7e-05,2]
[333708377,1722393032370,-499.99,9.8e-05,2]
[333708378,1722393032379,-1000.0,9.802e-05,2]
[333708379,1722393032389,-150.99,9.802e-05,2]
[333708380,1722393032398,-836.53811237,9.89e-05,2]
[333708381,1722393032408,-150.0,9.898e-05,2]
[333708382,1722393032418,-150.99,9.899e-05,2]
[333708383,1722393032432,-6883.08,9.899e-05,2]
[333708384,1722393032442,-385.36,9.899e-05,2]
[333708385,1722393032451,-1091.2303,9.9e-05,2]
[333708386,1722393032464,-91784.35158767,9.9e-05,2]
[333708387,1722393032509,-8215.64841233,9.9e-05,2]
[333708388,1722393032519,-6656.0977,9.9e-05,2]
[333708389,1722393032528,-1000.0,9.9e-05,2]
[333708390,1722393032538,-195.3954,9.9e-05,2]
[333708391,1722393032547,-2986.9963,9.9e-05,2]
[333708392,1722393032556,-460.0182,9.9e-05,2]
[333708393,1722393032566,-2500.0,9.9e-05,2]
[333708394,1722393032576,-1944.42348306,9.971e-05,2]
[333708395,1722393032586,-170.33874759,0.0001,2]
[333708396,1722393032596,-449.12407286,0.0001,2]
[333708397,1722393032605,-13744.96,0.0001,2]
[333708398,1722393032615,-181.65501648,0.0001,2]
[333708399,1722393032624,-412.74881558,0.0001,2]
[333708400,1722393032633,-1049.68627665,0.0001,2]
[333708401,1722393032643,-299.70235459,0.0001,2]
[333708402,1722393032792,-353549.16216825,0.0001,2]
[333708403,1722393032807,-5257.549987,0.0001,2]
[333708404,1722393032817,-151.0,0.0001,2]
[333708405,1722393032827,-151.0,0.0001,2]
[333708406,1722393032836,-3737.412592,0.0001,2]
[333708407,1722393032846,-3003.865646,0.0001,2]
[333708408,1722393032855,-3737.412592,0.0001,2]
[333708409,1722393032865,-3003.865646,0.0001,2]
[333708410,1722393032874,-151.0,0.0001,2]
[333708411,1722393032883,-151.0,0.0001,2]
[333708412,1722393032892,-232.48805,0.0001,2]
[333708413,1722393032902,-151.0,0.0001,2]
[333708414,1722393032911,-232.48805,0.0001,2]
[333708415,1722393032921,-151.0,0.0001,2]
[333708416,1722393032930,-274.84132,0.0001,2]
[333708417,1722393032939,-274.84132,0.0001,2]
[333708418,1722393032949,-241.717227,0.0001,2]
[333708419,1722393032958,-241.717227,0.0001,2]
[333708420,1722393032968,-188.026062,0.0001,2]
[333708421,1722393032977,-478.889365,0.0001,2]
[333708422,1722393032986,-1141.751201,0.0001,2]
[333708423,1722393032996,-1141.751201,0.0001,2]
[333708424,1722393033005,-478.889365,0.0001,2]
[333708425,1722393033014,-400.0,0.0001,3]
[333708426,1722393033025,-800.0,0.0001,3]
[333708427,1722393033039,-181.468776,0.0001,2]
[333708428,1722393033049,-181.468776,0.0001,2]
[333708429,1722393033058,-3212.938029,0.0001,2]
[333708430,1722393033068,-1025.378692,0.0001,2]
[333708431,1722393033078,-3212.938029,0.0001,2]
[333708432,1722393033088,-1025.378692,0.0001,2]
[333708433,1722393033097,-1922.944376,0.0001,2]
[333708434,1722393033109,-1922.944376,0.0001,2]
[333708435,1722393033119,-3778.848857,0.0001,2]
[333708436,1722393033128,-3778.848857,0.0001,2]
[333708437,1722393033138,-151.0,0.0001,2]
[333708438,1722393033148,-151.0,0.0001,2]
[333708439,1722393033157,-3000.0,0.0001,2]
[333708440,1722393033166,-1944.42348312,0.0001,2]
[333708441,1722393033177,-4020.570193,0.0001,2]
[333708442,1722393033187,-4020.570193,0.0001,2]
[333708443,1722393033196,-352.497393,0.0001,2]
[333708444,1722393033205,-1299.270516,0.0001,2]
[333708445,1722393033214,-352.497393,0.0001,2]
[333708446,1722393033224,-1299.270516,0.0001,2]
[333708447,1722393033233,-151.0,0.0001,2]
[333708448,1722393033243,-151.0,0.0001,2]
[333708449,1722393033253,-164.504088,0.0001,2]
[333708450,1722393033263,-164.504088,0.0001,2]
[333708451,1722393033273,-151.0,0.0001,2]
[333708452,1722393033283,-7558.435157,0.0001,2]
[333708453,1722393033293,-7558.435157,0.0001,2]
[333708454,1722393033302,-1944.42348306,0.00010043,2]
[333708455,1722393033312,-642.34,0.00010055,2]
[333708456,1722393033322,-151.0,0.000101,2]
[333708457,1722393033332,-151.0,0.000101,2]
[333708458,1722393033343,-151.0,0.000101,2]
[333708459,1722393033353,-151.0,0.000101,2]
[333708460,1722393033363,-151.0,0.000101,2]
[333708461,1722393033373,-177.649785,0.000101,2]
[333708462,1722393033383,-151.0,0.000101,2]
[333708463,1722393033393,-177.649785,0.000101,2]
[333708464,1722393033403,-151.0,0.000101,2]
[333708465,1722393033412,-178.127991,0.000101,2]
[333708466,1722393033422,-178.127991,0.000101,2]
[333708467,1722393033432,-198.239982,0.000101,2]
[333708468,1722393033442,-198.239982,0.000101,2]
[333708469,1722393033451,-151.0,0.000101,2]
[333708470,1722393033461,-1200.0,0.000101,3]
[333708471,1722393033471,-151.0,0.000101,2]
[333708472,1722393033480,-151.0,0.000101,2]